bitfinex-derivatives/quotes_ETHF0:USTF0_20251012
["timestamp","ask_amount","ask_price","bid_price","bid_amount"]
[1760303925370,0.43672111,4142.3,4142.2,3.2078]
[1760303925672,0.43672111,4142.3,4141.2,3.44927299]
[1760303925673,0.43429,4141.3,4141.2,3.44927299]
[1760303926170,0.43425,4141.8,4141.5,0.4382]
[1760303926376,0.43426,4141.7,4141.5,0.4382]
[1760303926571,3.21033111,4142.3,4141.5,0.44095357]
[1760303926776,0.43426,4141.7,4141.5,0.44095357]
[1760303926978,0.43426,4141.7,4141.6,1.1306]
[1760303928275,0.43423,4141.9,4141.5,0.44095357]
[1760303928581,0.43426,4141.7,4141.6,1.1306]
[1760303928781,0.43426,4141.7,4141.5,3.57e-06]
[1760303928981,0.43426,4141.7,4141.2,0.24147299]
[1760303928982,0.43429,4141.3,4141.2,2.99e-06]
[1760303929182,3.64209,4141.3,4141.2,2.99e-06]
[1760303929474,0.43437,4140.6,4140.5,1.5688]
[1760303929876,6.16692356,4140.6,4140.5,1.57169216]
[1760303930778,2.52475356,4140.6,4140.5,1.57169216]
[1760303931180,3.64211,4141.2,4141.0,0.4382]
[1760303931379,3.64211,4141.2,4140.5,0.44109216]
[1760303931380,0.43436,4140.7,4140.6,1.2064]
[1760303932078,3.07211394,4140.7,4140.6,1.2064]
[1760303933272,3.07211394,4140.7,4140.5,0.44109216]
[1760303933273,3.07211394,4140.7,4140.5,0.00289216]
[1760303933477,6.27991394,4140.7,4140.6,1.2064]
[1760303934885,6.27991394,4140.7,4140.5,0.44059216]
[1760303935779,3.64211,4141.2,4140.7,0.43436]
[1760303935978,3.2078,4141.2,4141.1,1.2064]
[1760303936374,3.29526486,4141.2,4141.1,1.2064]
[1760303938480,0.43431,4141.1,4141.0,1.6441]
[1760303938679,3.29526486,4141.2,4140.5,0.87496216]
[1760303938680,0.43437,4140.6,4140.5,1.64699216]
[1760303938889,3.64217,4140.6,4140.5,1.64699216]
[1760303939789,6.34803933,4140.6,4140.5,1.64699216]
[1760303940278,6.34803933,4140.6,4140.5,0.00289216]
[1760303940477,0.43446,4139.8,4139.6,3.2078]
[1760303940683,0.4345,4139.4,4139.0,3.6455]
[1760303941187,0.43449,4139.4,4139.0,3.6455]
[1760303941386,2.69572523,4139.3,4139.0,4.08003]
[1760303941586,2.69572523,4139.3,4139.2,1.2064]
[1760303941889,1.48016967,4139.4,4139.3,1.6409]
[1760303942086,0.00176751,4139.4,4139.3,1.6409]
[1760303942384,2.56139735,4139.4,4139.3,1.2064]
[1760303943391,0.00176751,4139.4,4139.0,3.64750981]
[1760303943691,0.43451,4139.3,4139.2,0.43451]
[1760303943885,0.43451,4139.3,4139.2,1.64091]
[1760303944086,2.80522632,4139.4,4139.3,1.2064]
[1760303944386,0.43452,4139.2,4139.0,0.00200981]
[1760303944691,0.43452,4139.2,4139.1,1.2064]
[1760303945787,0.43452,4139.2,4139.0,0.43970981]
[1760303945990,0.4345,4139.3,4139.0,0.43970981]
[1760303946182,0.00176751,4139.4,4139.0,0.43970981]
[1760303946389,2.72706592,4139.3,4139.2,1.64091]
[1760303946580,0.00176751,4139.4,4139.3,1.2064]
[1760303946786,3.2078,4140.4,4140.0,1.52378]
[1760303946987,3.2078,4140.4,4140.3,1.6408]
[1760303947393,3.2078,4140.4,4140.3,1.2064]
[1760303947591,1.08605,4140.2,4139.5,0.4377]
[1760303947786,0.43447,4139.7,4139.5,1.6441]
[1760303947990,0.43449,4139.4,4139.3,3.2078]
[1760303948291,0.43452,4139.1,4139.0,1.64610981]
[1760303948791,2.95025486,4139.1,4139.0,0.00200981]
[1760303949193,0.43463,4138.1,4138.0,1.6441]
[1760303949394,0.43467,4137.8,4137.6,3.2078]
[1760303949792,0.43468,4137.6,4137.5,1.6441]
[1760303949992,0.23361461,4137.7,4137.6,1.2064]
[1760303950195,0.43465,4137.9,4137.6,0.00236171]
[1760303950497,2.45170123,4137.8,4137.7,1.2064]
[1760303950888,2.45170123,4137.8,4137.6,0.43704171]
[1760303950889,3.2078,4139.1,4139.0,0.4377]
[1760303951095,3.2078,4139.1,4139.0,1.6441]
[1760303951591,0.43449,4139.5,4139.0,1.6441]
[1760303951592,0.00234178,4140.2,4140.0,0.87212]
[1760303951796,0.00234178,4140.2,4140.1,1.2064]
[1760303960192,0.00234178,4140.2,4139.7,3.2078]
[1760303960389,1.0857,4141.5,4139.7,3.2078]
[1760303960390,0.43427,4141.6,4141.0,0.4377]
[1760303960590,0.43426,4141.7,4141.3,0.43429]
[1760303960791,2.75559547,4141.4,4140.5,4.8519]
[1760303960994,0.43442,4140.1,4139.8,0.43444]
[1760303961200,0.43441,4140.3,4139.7,3.2078]
[1760303961396,0.43444,4139.9,4139.7,4.3126274]
[1760303961799,2.75915225,4139.8,4139.7,4.3126274]
[1760303962306,0.00308916,4140.3,4140.2,1.1023]
[1760303962495,0.00308916,4140.3,4139.7,3.2103274]
[1760303962496,3.52191953,4139.8,4139.7,0.0025274]
[1760303962696,0.43452,4139.2,4138.9,0.43454]
[1760303963000,0.43454,4139.0,4138.9,1.53684]
[1760303963200,0.70025144,4139.1,4138.5,3.6455]
[1760303963394,6.70838761,4139.8,4138.5,3.6455]
[1760303963395,3.509,4139.8,4139.0,0.43453]
[1760303963597,0.6682667,4139.3,4139.2,1.1023]
[1760303963795,0.43449,4139.4,4139.2,1.53681]
[1760303964212,2.78327618,4139.3,4139.2,1.53681]
[1760303964902,2.78327618,4139.3,4139.0,0.00184855]
[1760303964903,0.43451,4139.2,4139.0,0.43637855]
[1760303965102,2.78327618,4139.3,4139.2,1.53681]
[1760303965403,3.21778618,4139.3,4139.1,1.1023]
[1760303965705,3.21778618,4139.3,4139.1,1.53682]
[1760303966205,3.21778618,4139.3,4139.1,1.1023]
[1760303967003,0.43452,4139.1,4139.0,0.00184855]
[1760303967505,3.28784255,4139.1,4139.0,0.00184855]
[1760303968496,2.55212255,4139.1,4139.0,1.58084855]
[1760303968697,0.43448,4139.5,4139.2,0.43451]
[1760303969004,2.65306336,4139.4,4139.3,1.5368]
[1760303969198,2.65306336,4139.4,4139.0,0.47854855]
[1760303969199,0.73572,4139.1,4139.0,0.00184855]
[1760303969402,0.3012,4138.4,4138.3,1.72197799]
[1760303969601,0.43463,4138.1,4137.9,1.72197799]
[1760303969897,4.29433,4138.4,4137.6,2.82427799]
[1760303969898,0.43466,4137.8,4137.6,2.82427799]
[1760303970102,0.43466,4137.8,4137.6,1.1023]
[1760303970298,2.25381407,4137.7,4137.6,2.82700297]
[1760303970495,2.25381407,4137.7,4137.6,1.72470297]
[1760303971205,2.25381407,4137.7,4137.6,0.00272498]
[1760303971499,2.25381407,4137.7,4137.6,1.10502498]
[1760303971710,3.2078,4138.4,4138.1,0.43462]
[1760303972007,3.2078,4138.4,4137.8,1.1023]
[1760303972197,3.2078,4138.4,4138.3,0.43461]
[1760303972396,0.00308916,4140.3,4138.5,1.56316]
[1760303972397,3.2078,4138.9,4138.5,1.56316]
[1760303972593,0.30428916,4140.3,4139.1,1.08632]
[1760303972802,2.73276224,4140.1,4139.9,3.2078]
[1760303972998,0.43441,4140.2,4140.0,0.43443]
[1760303973193,0.43442,4140.1,4139.9,3.2078]
[1760303973394,2.73276224,4140.0,4139.5,0.4767]
[1760303973599,0.43448,4139.6,4139.4,3.2078]
[1760303973901,0.43452,4139.1,4138.9,3.2078]
[1760303974102,0.4345,4139.4,4139.0,1.1023]
[1760303974293,0.3012,4139.4,4139.0,1.53683]
[1760303974501,2.51334443,4139.6,4139.4,0.43449]
[1760303974695,0.00308916,4140.3,4139.5,3.2078]
[1760303974999,0.00308916,4140.3,4139.0,1.579]
[1760303975000,3.02414222,4139.3,4139.1,1.1023]
[1760303975200,0.43451,4139.3,4139.1,1.1023]
[1760303976302,0.00308916,4140.3,4140.1,0.43442]
[1760303976605,0.3991,4142.5,4140.7,0.43435]
[1760303976606,1.1603,4141.4,4140.7,0.43435]
[1760303976900,0.4703,4141.5,4140.8,3.2078]
[1760303977103,1.1603,4141.1,4140.8,3.2078]
[1760303977306,1.1603,4141.0,4140.8,3.2078]
[1760303977508,1.1603,4140.9,4140.8,3.21038208]
[1760303977698,1.1629604,4141.0,4140.8,3.64472208]
[1760303977904,0.0026604,4141.0,4140.8,3.64472208]
[1760303978105,0.0026604,4141.0,4140.9,1.1023]
[1760303978408,0.0026604,4141.0,4140.8,3.64472208]
[1760303978605,0.0026604,4141.0,4140.9,1.1023]
[1760303979802,0.0026604,4141.0,4140.8,3.64472208]
[1760303979803,1.1603,4140.9,4140.8,0.00258208]
[1760303980211,1.74563892,4140.9,4140.8,0.00258208]
[1760303980807,1.74563892,4140.9,4140.1,3.2078]
[1760303980808,0.4703,4140.5,4140.1,3.2078]
[1760303981003,1.1603,4140.4,4140.1,3.64221]
[1760303981202,1.1603,4140.4,4140.2,0.4344]
[1760303981611,0.0026604,4141.0,4140.9,1.53664]
[1760303981807,0.0026604,4141.0,4140.9,3.2641551]
[1760303982007,0.0026604,4141.0,4140.9,1.5389464]
[1760303983308,1.1629604,4141.0,4140.9,0.4366464]
[1760303983804,0.0026604,4141.0,4140.9,1.5974464]
[1760303984909,1.5804604,4141.0,4140.9,1.72617318]
[1760303985111,4.15591456,4141.0,4140.9,0.0023064]
[1760303986408,1.1212,4140.9,4140.5,1.72386678]
[1760303986616,6.1670546,4141.0,4140.5,1.72386678]
[1760303986617,0.43437,4140.7,4140.5,1.72386678]
[1760303986809,1.1212,4140.6,4140.5,1.72386678]
[1760303987116,1.1212,4140.3,4140.2,3.64221]
[1760303987417,3.64221929,4140.3,4140.2,3.21010502]
[1760303988616,0.43436,4140.7,4140.2,6.0947718]
[1760303988818,0.43436,4140.7,4140.4,0.43438]
[1760303989018,1.1212,4140.5,4140.2,5.3683718]
[1760303989218,1.1212,4140.5,4140.4,0.43439]
[1760303989716,1.1212,4140.4,4140.2,5.3683718]
[1760303990315,0.43437,4140.6,4140.2,5.3683718]
[1760303990316,1.1212,4140.6,4140.4,0.43439]
[1760303990511,0.02,4140.7,4140.6,1.59517]
[1760303996420,0.43437,4140.6,4140.5,2.15807985]
[1760303996621,3.898742,4140.7,4140.3,2.15809985]
[1760303996622,0.43439,4140.4,4140.3,2.15809985]
[1760303996817,0.4344,4140.3,4140.2,4.93380487]
[1760303997127,4.12709349,4140.3,4140.2,3.21010502]
[1760303997824,2.96779349,4140.3,4140.2,4.83431502]
[1760303998126,0.02,4140.7,4140.2,4.83431502]
[1760303998127,0.02,4140.7,4140.2,5.48593502]
[1760303998322,1.1793,4140.7,4140.4,2.9144346]
[1760303998522,1.1793,4140.7,4140.3,1.7246346]
[1760303998718,0.02,4140.7,4140.6,0.43437]
[1760303998922,0.02,4140.7,4140.6,1.62417]
[1760303999319,0.45436,4140.7,4140.6,1.7246346]
[1760303999623,0.02,4140.7,4140.6,0.43437]
[1760304000126,0.45436,4140.7,4140.6,0.43437]
[1760304000325,0.45436,4140.7,4140.5,1.7246346]
[1760304000528,0.45436,4140.7,4140.5,1.62418]
[1760304000922,0.43437,4140.6,4140.5,1.62418]
[1760304001123,0.43437,4140.6,4140.5,3.3488146]
[1760304001318,3.15485209,4140.6,4140.5,3.3488146]
[1760304001522,1.086,4140.3,4139.3,5.18352879]
[1760304001728,3.2078,4139.7,4139.0,2.64099008]
[1760304001932,0.43452,4139.1,4139.0,1.6665]
[1760304002322,3.2105565,4139.1,4139.0,1.6665]
[1760304002529,3.2105565,4139.1,4139.0,1.66842292]
[1760304005932,2.7760365,4139.1,4139.0,1.66842292]
[1760304006120,0.43452,4139.1,4139.0,1.66842292]
[1760304006325,0.43452,4139.1,4139.0,0.00192292]
[1760304006326,3.64232,4139.1,4139.0,0.00192292]
[1760304006529,6.2482679,4139.1,4139.0,0.00192292]
[1760304006929,1.0862,4139.6,4139.0,0.00192292]
[1760304006930,3.2078,4139.6,4139.5,0.88008]
[1760304007132,3.64221,4140.2,4140.1,1.1898]
[1760304007635,3.2078,4140.2,4140.1,1.1898]
[1760304007831,5.76447386,4140.2,4140.1,1.1898]
[1760304008333,2.55667386,4140.2,4140.1,1.1898]
[1760304010440,2.55667386,4140.2,4140.0,0.88003]
[1760304010441,0.43442,4140.1,4140.0,0.4456]
[1760304010641,0.43442,4140.1,4140.0,1.6354]
[1760304010834,0.4927616,4140.1,4140.0,1.6354]
[1760304011834,0.4927616,4140.1,4139.5,0.4456]
[1760304011835,0.43445,4139.8,4139.7,1.72791844]
[1760304012035,0.43445,4139.8,4139.7,2.91771844]
[1760304012235,2.95009127,4139.8,4139.7,1.1898]
[1760304012536,2.95009127,4139.8,4139.6,1.72791844]
[1760304012733,2.95009127,4139.8,4139.5,2.17351844]
[1760304012734,0.43447,4139.6,4139.5,2.17351844]
[1760304012932,0.43447,4139.6,4139.5,0.4456]
[1760304013134,1.81698604,4139.6,4139.5,0.4456]
[1760304013627,1.81698604,4139.6,4139.5,2.17351844]
[1760304013837,1.81698604,4139.6,4139.5,3.36331844]
[1760304014834,3.2078,4140.8,4140.6,0.43437]
[1760304015030,3.2078,4140.8,4140.6,1.62417]
[1760304015230,2.00383846,4141.4,4141.3,1.62409]
[1760304015437,3.2078,4142.0,4141.9,1.62402]
[1760304015637,3.2078,4142.0,4141.5,0.4456]
[1760304015638,2.7578,4142.6,4142.5,1.6354]
[1760304016040,0.43396,4144.5,4143.6,1.1898]
[1760304016236,0.43677871,4144.5,4144.0,3.6534]
[1760304016435,0.00281871,4144.5,4144.1,1.1898]
[1760304016735,0.43398,4144.3,4144.1,1.1898]
[1760304017035,0.00281871,4144.5,4144.4,1.1898]
[1760304017842,0.188,4144.0,4143.7,3.2078]
[1760304018036,0.43403,4143.8,4143.6,0.00170843]
[1760304019240,2.77658871,4144.6,4143.7,1.1898]
[1760304019537,2.77658871,4144.6,4144.2,1.1898]
[1760304019732,2.77658871,4144.6,4144.2,1.62378]
[1760304019932,2.77658871,4144.6,4144.3,1.1898]
[1760304020237,2.77658871,4144.6,4144.2,0.43398]
[1760304020238,0.43395,4144.7,4144.2,0.43398]
[1760304020439,0.00213599,4144.6,4144.5,1.6354]
[1760304020743,0.00213599,4144.6,4144.5,4.8432]
[1760304021338,3.2078,4145.7,4145.4,0.43386]
[1760304021541,0.43382,4145.9,4145.5,0.43385]
[1760304021742,0.43384,4145.7,4145.4,1.131]
[1760304022245,0.43395,4144.7,4144.5,3.2078]
[1760304022446,0.43701461,4144.7,4144.5,4.3388]
[1760304024848,0.43701461,4144.7,4144.5,3.2078]
[1760304025047,0.43700461,4144.7,4144.1,1.131]
[1760304025345,0.43700461,4144.7,4144.4,3.2078]
[1760304025639,0.43700461,4144.7,4144.6,1.131]
[1760304025640,0.00306461,4144.7,4144.6,1.131]
[1760304033252,0.00306461,4144.7,4144.6,1.56495]
[1760304034251,10.137,4146.1,4145.6,1.131]
[1760304034552,10.5708,4146.1,4146.0,0.8925]
[1760304034751,10.137,4146.1,4146.0,2.0235]
[1760304034955,10.137,4146.1,4146.0,5.2313]
[1760304035150,10.14005175,4146.1,4146.0,5.2313]
[1760304035751,10.57384175,4146.1,4146.0,5.2313]
[1760304036251,10.14005175,4146.1,4146.0,5.2313]
[1760304036654,10.57384175,4146.1,4146.0,5.2313]
[1760304036953,10.14005175,4146.1,4146.0,5.2313]
[1760304037154,0.00305175,4146.1,4146.0,5.2313]
[1760304037354,0.43684175,4146.1,4146.0,5.2313]
[1760304037657,0.00305175,4146.1,4146.0,5.2313]
[1760304037953,0.67944175,4146.1,4146.0,3.2078]
[1760304038152,0.43684175,4146.1,4146.0,4.3388]
[1760304039350,0.43684175,4146.1,4146.0,1.131]
[1760304039551,0.43684175,4146.1,4145.5,1.5897]
[1760304039552,0.43384,4145.6,4145.5,1.5897]
[1760304040156,1.08754175,4146.1,4145.5,2.02355]
[1760304040357,0.43395,4144.6,4144.5,1.131]
[1760304040665,0.43395,4144.6,4144.5,1.5897]
[1760304041050,0.43395,4144.6,4144.4,3.2078]
[1760304041358,0.434,4144.1,4144.0,1.5897]
[1760304041559,0.434,4144.1,4143.9,3.2078]
[1760304041751,0.434,4144.1,4143.4,3.2078]
[1760304041752,0.43404,4143.7,4143.4,3.2078]
[1760304042152,3.59664737,4143.7,4143.4,3.2078]
[1760304042553,1.08522,4143.3,4142.5,0.4587]
[1760304042756,0.43416,4142.6,4142.5,0.4587]
[1760304042962,2.64526188,4143.2,4143.1,1.131]
[1760304043255,0.43409,4143.3,4143.1,1.131]
[1760304043455,0.43665869,4143.3,4143.1,1.13274807]
[1760304043758,0.43665869,4143.3,4143.2,1.131]
[1760304043759,0.00256869,4143.3,4143.2,1.131]
[1760304050868,10.84261,4147.0,4144.6,1.144]
[1760304050869,0.43394,4144.7,4144.6,1.144]
[1760304051164,3.2078,4145.9,4145.0,0.4877]
[1760304051375,0.83377547,4146.5,4146.3,0.43377]
[1760304051560,3.2078,4146.6,4146.5,0.4628]
[1760304051872,0.00234986,4146.6,4146.5,4.8695]
[1760304056870,0.00234986,4146.6,4146.5,1.6617]
[1760304058472,0.43375,4146.5,4146.3,0.00196167]
[1760304061481,0.43376,4146.4,4146.3,1.20086167]
[1760304062472,3.64156,4146.4,4146.3,0.00196167]
[1760304062777,6.81185435,4146.4,4146.3,0.00196167]
[1760304063280,0.43384,4145.6,4145.4,3.2078]
[1760304063777,3.14392721,4145.5,4145.1,1.1989]
[1760304064074,3.14392721,4145.5,4144.9,3.2078]
[1760304064075,0.43384,4145.6,4145.5,1.6617]
[1760304064277,0.43384,4145.6,4145.5,1.66467534]
[1760304070275,3.2078,4146.3,4145.6,1.1989]
[1760304070581,0.00234986,4146.6,4146.5,1.6617]
[1760304070772,0.43608986,4146.6,4146.5,1.6617]
[1760304073179,0.00234986,4146.6,4146.5,2.09545]
[1760304073981,0.00234986,4146.6,4146.5,1.6617]
[1760304074277,0.00234986,4146.6,4145.9,3.2078]
[1760304074278,0.43379,4146.1,4145.9,3.2078]
[1760304074980,0.00234986,4146.6,4146.5,0.4628]
[1760304075180,0.43608986,4146.6,4146.5,1.6617]
[1760304075382,0.43379,4146.1,4146.0,0.4628]
[1760304076079,0.43379,4146.1,4146.0,1.6617]
[1760304078886,0.43384,4145.6,4145.5,1.66467534]
[1760304081983,0.43384,4145.6,4145.5,3.37681299]
[1760304082885,0.43379,4146.1,4146.0,1.5565]
[1760304085586,1.08455,4145.9,4145.1,0.51373988]
[1760304085779,0.43388,4145.2,4145.1,1.0891]
[1760304086085,0.43391,4145.0,4144.9,3.2078]
[1760304086478,3.56404571,4145.0,4144.9,3.2078]
[1760304086691,3.56404571,4145.0,4144.9,3.21017019]
[1760304086992,0.4341,4143.1,4143.0,3.48949897]
[1760304087181,3.2078,4143.1,4143.0,1.5565]
[1760304087487,3.2078,4143.1,4142.5,0.4674]
[1760304087488,0.43416,4142.6,4142.5,1.5565]
[1760304087688,0.43416,4142.6,4141.1,3.02209897]
[1760304087689,3.2078,4142.6,4141.1,3.02209897]
[1760304087993,0.43439,4140.4,4140.1,1.0891]
[1760304088190,3.2078,4140.6,4140.5,1.5565]
[1760304088389,11.20965,4141.7,4141.1,1.0891]
[1760304088390,3.2078,4141.2,4141.1,1.0891]
[1760304088688,3.2078,4141.2,4140.1,0.00210803]
[1760304088689,0.43441,4140.2,4140.1,0.00210803]
[1760304088881,3.64221,4140.2,4140.1,0.00210803]
[1760304089186,1.08619,4139.6,4137.9,8.85216734]
[1760304089386,3.2078,4138.6,4138.0,0.4674]
[1760304089594,3.64243,4138.1,4138.0,0.4674]
[1760304089783,3.64243,4138.1,4137.6,1.0891]
[1760304089784,0.43467,4137.7,4137.6,1.0891]
[1760304090290,2.15851777,4137.7,4137.6,1.09147215]
[1760304090483,2.15851777,4137.7,4136.5,0.4674]
[1760304090484,4.81537293,4137.7,4136.5,0.4674]
[1760304090682,4.81537293,4137.7,4136.5,1.5565]
[1760304090683,3.2078,4136.6,4136.5,1.5565]
[1760304090882,0.4348,4136.5,4136.0,0.4674]
[1760304091082,7.75920517,4136.6,4136.5,0.4674]
[1760304091282,3.2078,4136.6,4136.5,0.4674]
[1760304091487,3.2078,4136.6,4136.5,0.4693211]
[1760304091691,9.18832953,4136.6,4135.5,0.4674]
[1760304091896,0.43492,4135.3,4134.5,1.5565]
[1760304092094,3.2078,4134.8,4134.5,1.5565]
[1760304092496,3.28516136,4134.7,4134.6,1.0891]
[1760304092798,3.14161468,4134.7,4134.6,1.09205612]
[1760304092991,5.93848012,4134.7,4134.6,0.00295612]
[1760304093191,5.93848012,4134.7,4134.1,1.0891]
[1760304093391,3.2078,4134.3,4134.1,1.0891]
[1760304093791,5.38629109,4134.2,4133.6,1.0891]
[1760304093997,1.75818327,4134.2,4134.1,1.0891]
[1760304094200,10.131,4135.9,4134.1,1.0891]
[1760304094201,3.2078,4135.5,4135.3,1.0891]
[1760304094405,3.2078,4135.5,4135.2,0.4674]
[1760304094691,0.9374239,4135.4,4135.3,1.0891]
[1760304094899,3.2078,4135.5,4135.2,0.4674]
[1760304095289,2.67666425,4135.4,4135.3,1.0891]
[1760304095696,5.87162154,4135.4,4135.3,1.0891]
[1760304095995,0.43492,4135.3,4134.7,1.0891]
[1760304096190,3.2078,4135.0,4134.6,0.4674]
[1760304096390,3.2078,4135.0,4134.6,0.9024]
[1760304096694,3.2078,4135.0,4134.9,1.0891]
[1760304097092,0.00277599,4135.5,4135.4,0.43491]
[1760304097287,0.00277599,4135.5,4135.4,1.52401]
[1760304097492,4.78882663,4137.1,4135.2,3.6752]
[1760304097493,3.2078,4137.3,4136.7,0.43477]
[1760304097693,3.2078,4137.3,4137.0,0.4674]
[1760304098205,2.30662114,4137.2,4137.1,1.0891]
[1760304098397,2.30662114,4137.2,4137.1,1.52383]
[1760304098700,2.30943378,4137.2,4137.1,1.52651657]
[1760304099503,1.08632,4139.2,4137.1,1.52651657]
[1760304099504,1.81802166,4137.8,4137.7,0.43467]
[1760304099802,3.12384226,4139.5,4138.9,1.0891]
[1760304100000,3.12384226,4139.5,4139.4,1.99099]
[1760304100302,0.43444,4140.0,4139.4,1.5565]
[1760304100499,0.43444,4139.9,4139.4,1.5565]
[1760304100693,3.08322526,4139.6,4139.4,1.5565]
[1760304100898,3.2078,4139.5,4138.8,1.5565]
[1760304101098,0.43453,4139.1,4138.2,1.5565]
[1760304101398,0.43457,4138.8,4138.2,1.5565]
[1760304101593,0.43459,4138.5,4138.2,1.5565]
[1760304101794,10.139,4138.8,4137.0,0.4674]
[1760304101795,0.43464,4138.1,4137.6,3.6752]
[1760304102098,3.2078,4138.3,4138.2,0.4674]
[1760304102099,3.64241,4138.3,4138.2,0.4674]
[1760304102396,10.139,4138.8,4138.3,1.0891]
[1760304102599,10.139,4138.8,4138.2,0.4674]
[1760304102802,10.139,4138.8,4137.6,3.6752]
[1760304102803,3.15143911,4138.3,4137.6,1.5565]
[1760304103009,0.43466,4137.8,4137.7,1.0891]
[1760304103193,0.43466,4137.8,4137.6,0.4674]
[1760304103399,3.59048744,4137.8,4137.6,0.4674]
[1760304103699,3.59048744,4137.8,4136.6,4.3436]
[1760304103700,0.43478,4136.7,4136.6,4.3436]
[1760304103899,0.43476,4136.9,4136.6,4.3436]
[1760304104095,0.43477,4136.8,4136.6,3.2078]
[1760304104300,4.17481752,4136.8,4136.7,1.1358]
[1760304104498,4.24246215,4136.8,4136.7,1.13890284]
[1760304104804,7.34795258,4136.8,4136.7,1.13890284]
[1760304105394,7.34795258,4136.8,4136.0,0.43485]
[1760304105395,6.91318258,4136.8,4135.9,1.1358]
[1760304105598,1.08703,4136.4,4135.3,4.3436]
[1760304105802,1.08703,4136.4,4135.3,1.1358]
[1760304105803,0.43491,4135.4,4135.3,1.1358]
[1760304106006,0.43491,4135.5,4135.2,0.469]
[1760304106201,0.43498,4134.8,4134.6,0.469]
[1760304106407,3.2078,4134.7,4134.6,0.4711124]
[1760304106600,7.34322871,4134.7,4134.6,0.4711124]
[1760304107501,7.34322871,4134.7,4134.0,0.469]
[1760304107707,0.43502,4134.5,4134.0,0.469]
[1760304107904,4.13542871,4134.7,4134.1,1.1358]
[1760304108201,4.14792686,4134.4,4134.0,0.469]
[1760304108399,4.10630788,4134.6,4134.3,0.43502]
[1760304108606,0.43495,4135.1,4134.4,0.43501]
[1760304108807,15.66131978,4136.8,4135.0,1.1358]
[1760304108808,0.43489,4135.7,4135.0,1.1358]
[1760304108999,3.2078,4135.8,4135.0,1.1358]
[1760304109206,0.0584955,4135.1,4135.0,1.1358]
[1760304109504,1.35670629,4135.6,4135.3,1.1358]
[1760304109703,1.35670629,4135.6,4135.2,0.469]
[1760304109704,1.35670629,4135.6,4135.4,0.43491]
[1760304110009,1.35670629,4135.6,4135.2,0.469]
[1760304110010,0.14621224,4135.7,4135.2,0.469]
[1760304110213,3.64268,4135.8,4135.3,1.1358]
[1760304110412,3.07966465,4135.5,4135.3,1.1358]
[1760304110712,0.02923679,4135.4,4135.3,1.1358]
[1760304110908,0.02923679,4135.4,4135.2,0.469]
[1760304110909,0.43492,4135.3,4135.2,0.469]
[1760304111214,0.43497,4134.9,4134.7,1.1358]
[1760304111406,0.43497,4134.9,4134.7,1.2283]
[1760304111713,0.29241882,4134.8,4134.7,1.2283]
[1760304111915,3.46883689,4134.8,4134.7,1.2283]
[1760304112307,3.17641807,4134.8,4134.7,1.2283]
[1760304112504,3.46883689,4134.8,4134.7,1.2283]
[1760304114514,0.29241882,4134.8,4134.7,1.2283]
[1760304114917,1.4736881,4135.2,4134.6,0.469]
[1760304115113,0.29241882,4135.0,4134.6,1.6973]
[1760304115308,3.44629164,4135.0,4134.6,0.469]
[1760304115509,4.53982509,4135.2,4134.7,1.2283]
[1760304115712,0.35090867,4134.9,4134.7,1.2283]
[1760304116014,3.17422388,4134.9,4134.8,1.2283]
[1760304116216,1.13188632,4134.9,4134.6,0.469]
[1760304116516,0.38015465,4134.9,4134.7,0.43498]
[1760304116711,0.83377547,4135.5,4135.4,0.43491]
[1760304116913,0.43483,4136.2,4135.7,0.43488]
[1760304117116,13.3508,4136.6,4135.5,0.4931]
[1760304117117,0.69703145,4136.1,4136.0,1.7214]
[1760304117414,4.59635689,4136.1,4136.0,1.7214]
[1760304117612,0.69703145,4136.1,4136.0,1.7214]
[1760304117810,3.8675569,4136.1,4136.0,1.7214]
[1760304118109,4.46411367,4136.1,4136.0,1.7214]
[1760304118611,4.72528094,4136.1,4136.0,1.7214]
[1760304119012,5.35106743,4136.1,4136.0,1.7214]
[1760304119316,5.75266369,4136.1,4136.0,1.7214]
[1760304120113,0.69703145,4136.1,4136.0,1.7214]
[1760304120609,1.32281794,4136.1,4136.0,1.7214]
[1760304120805,3.2078,4136.6,4136.0,1.7214]
[1760304120806,0.85901314,4136.5,4136.4,0.43481]
[1760304121010,3.2078,4137.1,4136.7,1.2283]
[1760304121011,0.85901314,4136.9,4136.7,1.2283]
[1760304121220,0.85901314,4137.4,4137.0,0.4931]
[1760304121411,0.85901314,4137.4,4137.1,1.2283]
[1760304121618,0.85901314,4137.4,4137.3,1.66301]
[1760304121920,3.2078,4137.5,4137.4,1.2283]
[1760304122118,3.21047751,4137.5,4137.4,1.23088407]
[1760304122418,0.43473,4137.1,4137.0,0.4931]
[1760304122911,4.9729076,4137.1,4137.0,0.4931]
[1760304123313,4.5381776,4137.1,4137.0,2.15799687]
[1760304123513,0.89968815,4137.1,4137.0,2.15799687]
[1760304123918,0.04136867,4137.1,4137.0,2.15799687]
[1760304124415,3.21047751,4137.5,4137.4,0.4347]
[1760304124620,3.21047751,4137.5,4137.4,1.663]
[1760304125016,0.00267751,4137.5,4137.4,1.663]
[1760304125619,6.7804959,4137.5,4137.0,0.49495687]
[1760304125927,0.85831948,4137.4,4137.1,1.2283]
[1760304126122,1.29302948,4137.4,4137.1,1.66303]
[1760304126429,3.13531839,4137.3,4137.2,1.2283]
[1760304126929,0.85831948,4137.4,4137.3,1.66301]
[1760304127123,3.21047751,4137.5,4137.3,1.66301]
[1760304127328,3.21047751,4137.5,4137.4,1.2283]
[1760304127523,0.43472,4137.2,4137.1,1.2283]
[1760304128027,3.61241939,4137.2,4137.1,1.2283]
[1760304128421,3.17769939,4137.2,4137.1,1.2283]
[1760304128926,3.54397398,4137.3,4137.0,0.92969687]
[1760304129127,0.43473,4137.2,4137.1,1.2283]
[1760304129630,1.29304948,4137.2,4137.1,1.2283]
[1760304129828,1.29304948,4137.2,4137.0,0.49495687]
[1760304129829,0.43473,4137.2,4137.0,0.49495687]
[1760304130025,4.92868336,4137.2,4137.0,0.49495687]